bitfinex/quotes_SOLUSD_20240912
["timestamp","ask_amount","ask_price","bid_price","bid_amount"]
[1726123157040,0.2656504,134.88,134.87,47.132584]
[1726123171327,0.2656504,134.88,134.87,40.459584]
[1726123172243,0.2656504,134.88,134.87,47.132584]
[1726123173126,0.2656504,134.88,134.84,40.462884]
[1726123174451,0.2656504,134.88,134.86,23.776884]
[1726123174927,0.2656504,134.88,134.83,14.824933]
[1726123174928,6.6735,134.87,134.81,16.6898]
[1726123175130,0.2656504,134.88,134.84,6.6745]
[1726123176147,0.2656504,134.88,134.85,23.776884]
[1726123177043,0.2656504,134.88,134.85,30.450784]
[1726123179934,0.2656504,134.88,134.87,23.776884]
[1726123180551,0.2656504,134.88,134.87,30.449884]
[1726123180755,0.2656504,134.88,134.87,45.274817]
[1726123185854,0.2656504,134.88,134.87,30.449884]
[1726123186858,0.2656504,134.88,134.87,45.274817]
[1726123187052,0.2656504,134.88,134.87,46.75662996]
[1726123187346,0.2656504,134.88,134.87,47.00728744]
[1726123187853,0.2656504,134.92,134.91,23.3488]
[1726123188036,0.2656504,134.92,134.91,61.950617]
[1726123189143,0.2656504,134.92,134.91,62.201597]
[1726123193467,0.2656504,134.92,134.91,23.3488]
[1726123194450,0.2656504,134.92,134.88,33.3626]
[1726123194451,0.2656504,134.92,134.88,16.6811]
[1726123195333,0.2656504,134.92,134.89,6.672]
[1726123195859,0.2656504,134.92,134.9,23.776884]
[1726123207798,0.2656504,134.92,134.89,23.776884]
[1726123208271,0.2656504,134.92,134.89,30.448884]
[1726123208647,6.9362504,134.92,134.88,16.6811]
[1726123208851,6.6712,134.91,134.86,6.6734]
[1726123210268,6.6724,134.89,134.85,16.6849]
[1726123211081,6.6724,134.89,134.82,16.6885]
[1726123211243,6.2106,134.89,134.78,16.9583504]
[1726123211447,6.673,134.88,134.79,14.824933]
[1726123212275,6.673,134.88,134.82,6.6755]
[1726123212452,6.2106,134.89,134.81,14.824933]
[1726123212777,6.2106,134.89,134.82,43.776884]
[1726123213352,6.2106,134.89,134.84,6.6745]
[1726123216465,6.2106,134.89,134.85,6.6739]
[1726123216861,6.2106,134.89,134.86,8.15634963]
[1726123218263,6.2106,134.89,134.86,6.6735]
[1726123219978,6.2106,134.89,134.85,6.674]
[1726123224074,12.8827,134.89,134.84,6.6745]
[1726123224272,12.8827,134.89,134.85,23.776884]
[1726123224776,6.2106,134.89,134.85,30.450784]
[1726123225572,6.2106,134.89,134.86,6.6734]
[1726123225960,6.2106,134.89,134.85,6.6739]
[1726123230871,12.8827,134.89,134.85,6.6739]
[1726123231764,12.8827,134.89,134.84,30.451284]
[1726123233667,20.61913705,134.89,134.84,30.451284]
[1726123235099,6.6726,134.88,134.84,23.776884]
[1726123237168,6.6726,134.88,134.84,30.451384]
[1726123253898,6.6726,134.88,134.84,23.776884]
[1726123254894,6.6726,134.88,134.84,30.451384]
[1726123259425,13.94703705,134.89,134.83,16.6873]
[1726123259426,6.673,134.87,134.83,16.6873]
[1726123259611,16.211,134.86,134.83,16.6873]
[1726123260134,16.211,134.86,134.83,23.3619]
[1726123260301,16.211,134.86,134.84,23.776884]
[1726123260500,29.53993705,134.89,134.86,6.6731]
[1726123260697,15.5929,134.89,134.87,30.449884]
[1726123261890,29.64321139,134.92,134.88,6.6725]
[1726123262899,29.64321139,134.92,134.87,23.776884]
[1726123262900,29.64321139,134.92,134.89,6.6721]
[1726123263115,15.8197504,134.92,134.89,6.6721]
[1726123265827,15.8197504,134.92,134.9,23.776884]
[1726123266326,15.8197504,134.92,134.9,6.6713]
[1726123266503,0.2656504,134.92,134.9,6.6713]
[1726123266696,0.2656504,134.92,134.91,1.33678337]
[1726123268304,0.2656504,134.92,134.9,6.6713]
[1726123273414,0.2656504,134.92,134.89,40.456084]
[1726123275421,0.2656504,134.92,134.89,47.128084]
[1726123277203,6.9362504,134.92,134.86,16.6833]
[1726123277513,6.9362504,134.92,134.87,23.776884]
[1726123278238,6.9362504,134.92,134.87,30.449884]
[1726123281424,6.6712,134.91,134.87,23.776884]
[1726123288030,14.68222736,134.92,134.87,30.449784]
[1726123290534,6.6711,134.91,134.87,30.449784]
[1726123290729,6.6721,134.89,134.84,6.6741]
[1726123291036,22.6793,134.9,134.83,23.3621]
[1726123291037,6.6727,134.88,134.83,23.3621]
[1726123291616,6.6731,134.87,134.83,16.6871]
[1726123292334,6.6727,134.88,134.83,16.6871]
[1726123292534,6.6727,134.88,134.83,23.362]
[1726123295042,22.6793,134.9,134.83,16.6871]
[1726123295239,29.3513,134.9,134.85,6.6739]
[1726123295412,6.6721,134.89,134.85,6.6739]
[1726123295737,6.6721,134.89,134.84,30.451284]
[1726123297642,6.6721,134.89,134.85,6.674]
[1726123298018,29.3509,134.9,134.85,6.674]
[1726123302424,29.3509,134.9,134.84,23.776884]
[1726123302425,22.6793,134.9,134.84,23.776884]
[1726123302628,6.6725,134.89,134.84,30.450984]
[1726123303242,6.6728,134.88,134.84,23.776884]
[1726123319849,7.74951656,134.89,134.84,23.776884]
[1726123320046,29.3511,134.9,134.86,23.776884]
[1726123325270,6.6722,134.89,134.84,6.6744]
[1726123325449,6.6722,134.89,134.85,23.776884]
[1726123327462,29.3509,134.9,134.85,6.674]
[1726123327777,29.3509,134.9,134.86,23.776884]
[1726123328674,6.6723,134.89,134.85,23.776884]
[1726123334988,6.6723,134.89,134.85,6.6739]
[1726123335161,6.6723,134.89,134.86,23.776884]
[1726123339399,29.351,134.9,134.86,23.776884]
[1726123351615,6.6722,134.89,134.86,23.776884]
[1726123351908,6.6722,134.89,134.85,23.776884]
[1726123352408,14.43169829,134.89,134.85,23.776884]
[1726123357412,6.6722,134.89,134.86,23.776884]
[1726123362734,29.351,134.9,134.86,23.776884]
[1726123363419,16.4744,134.9,134.87,6.6727]
[1726123363634,16.4744,134.9,134.88,23.776884]
[1726123364231,16.4744,134.9,134.87,23.776884]
[1726123371415,16.4744,134.9,134.87,6.6729]
[1726123371627,16.4744,134.9,134.88,23.776884]
[1726123376349,16.4744,134.9,134.87,6.6729]
[1726123376845,16.4744,134.9,134.86,30.450284]
[1726123377144,23.1461,134.9,134.86,23.776884]
[1726123377852,23.1461,134.9,134.85,23.3585]
[1726123377853,6.6721,134.89,134.85,23.3585]
[1726123379055,6.6721,134.89,134.86,23.776884]
[1726123383561,30.9021902,134.9,134.86,23.776884]
[1726123383938,23.1461,134.9,134.86,30.450284]
[1726123384235,16.4744,134.9,134.86,23.776884]
[1726123385355,16.4744,134.9,134.88,23.776884]
[1726123385559,16.4744,134.9,134.88,30.449284]
[1726123385854,16.4744,134.9,134.88,23.776884]
[1726123387761,0.2656504,134.92,134.91,6.6711]
[1726123388055,0.2656504,134.92,134.91,45.272917]
[1726123388761,0.2656504,134.92,134.91,45.398407]
[1726123389971,0.2656504,134.92,134.91,45.272917]
[1726123391756,0.2656504,134.92,134.91,45.523897]
[1726123392542,0.2656504,134.92,134.91,45.272917]
[1726123393748,0.2656504,134.92,134.91,21.496033]
[1726123394060,0.2656504,134.92,134.91,22.97799866]
[1726123394946,0.2656504,134.92,134.91,45.272917]
[1726123396555,0.2656504,134.92,134.91,75.272917]
[1726123397154,0.2656504,134.92,134.91,45.272917]
[1726123400049,0.2656504,134.92,134.91,30.447984]
[1726123400367,0.2656504,134.92,134.91,45.272917]
[1726123402781,0.2656504,134.92,134.91,45.398407]
[1726123402946,0.2656504,134.92,134.91,45.272917]
[1726123406460,0.2656504,134.92,134.91,45.523897]
[1726123406656,0.2656504,134.92,134.91,45.272917]
[1726123407085,0.2656504,134.92,134.91,45.523897]
[1726123411574,0.2656504,134.92,134.91,30.447984]
[1726123419173,0.2656504,134.92,134.91,32.18076724]
[1726123423768,0.2656504,134.92,134.91,30.698964]
[1726123426497,0.2656504,134.92,134.91,30.447984]
[1726123426693,0.2656504,134.92,134.89,16.6791]
[1726123426893,0.2656504,134.92,134.85,16.684]
[1726123427423,6.9362504,134.92,134.86,6.6733]
[1726123428519,6.9362504,134.92,134.87,23.776884]
[1726123429112,0.2656504,134.92,134.87,6.6726]
[1726123431200,6.9362504,134.92,134.87,6.6726]
[1726123432583,21.6041,134.91,134.87,6.6726]
[1726123437399,36.02806143,134.91,134.86,30.450384]
[1726123440905,29.35686143,134.91,134.85,16.684]
[1726123441220,6.6721,134.89,134.85,23.3579]
[1726123441417,6.6717,134.9,134.85,23.3579]
[1726123441996,29.35686143,134.91,134.86,6.6734]
[1726123441997,36.02796143,134.91,134.86,6.6734]
[1726123446118,6.6718,134.9,134.86,23.776884]
[1726123446620,6.6718,134.9,134.85,23.358]
[1726123447289,6.6726,134.88,134.83,30.451784]
[1726123450317,14.4243634,134.89,134.84,6.6745]
[1726123451205,14.4243634,134.89,134.83,23.776884]
[1726123451394,14.4243634,134.89,134.85,6.674]
[1726123452226,7.7521634,134.89,134.85,6.674]
[1726123452613,7.7521634,134.89,134.86,6.6734]
[1726123456233,7.7521634,134.89,134.85,30.450884]
[1726123462435,15.1214,134.9,134.86,16.6833]
[1726123463432,15.1214,134.9,134.87,6.6729]
[1726123464036,21.7931,134.9,134.86,16.6833]
[1726123465112,15.1214,134.9,134.86,23.3568]
[1726123468133,15.1214,134.9,134.88,6.6725]
[1726123477440,15.1214,134.9,134.87,30.449884]
[1726123477650,15.1214,134.9,134.88,6.6725]
[1726123489561,0.2656504,134.92,134.88,6.6725]
[1726123490350,0.2656504,134.92,134.89,6.672]
[1726123491764,0.2656504,134.92,134.9,6.6715]
[1726123493662,0.2656504,134.92,134.89,6.672]
[1726123493870,0.2656504,134.92,134.89,30.448884]
[1726123502265,0.2656504,134.92,134.85,16.6846]
[1726123502453,8.02400905,134.92,134.85,16.6846]
[1726123502961,6.6715,134.91,134.86,6.6732]
[1726123504945,22.4037,134.91,134.85,16.6846]
[1726123505346,6.6725,134.89,134.84,6.6741]
[1726123505555,6.6726,134.88,134.84,6.6741]
[1726123505762,16.0997,134.87,134.82,16.6885]
[1726123506361,16.0997,134.87,134.83,6.6749]
[1726123506565,16.0997,134.87,134.82,16.6885]
[1726123506936,22.7728,134.87,134.82,16.6885]
[1726123507775,22.7728,134.87,134.82,23.3638]
[1726123509588,16.0997,134.87,134.83,6.6749]
[1726123511073,22.7728,134.87,134.82,23.364]
[1726123512859,30.53038127,134.87,134.82,23.364]
[1726123513566,6.6737,134.86,134.82,16.6885]
[1726123518985,6.6741,134.85,134.8,6.6765]
[1726123519158,16.353,134.84,134.8,6.6765]
[1726123519365,23.0275,134.84,134.8,6.6765]
[1726123520372,16.353,134.84,134.8,6.6765]
[1726123522892,16.353,134.84,134.8,23.776884]
[1726123524369,16.353,134.84,134.82,6.6755]
[1726123526287,16.353,134.84,134.81,6.676]
[1726123526987,16.353,134.84,134.8,6.6764]
[1726123529074,16.353,134.84,134.79,23.369]
[1726123529393,6.2998,134.83,134.79,23.369]
[1726123530314,12.9748,134.83,134.79,23.369]
[1726123531014,6.2998,134.83,134.79,23.369]
[1726123533542,14.0542626,134.83,134.79,23.369]
[1726123534618,20.0,134.82,134.78,0.2656504]
[1726123534796,16.6499,134.81,134.78,0.2656504]
[1726123535127,6.677,134.79,134.78,0.2656504]
[1726123543836,14.43748053,134.79,134.78,0.2656504]
[1726123546419,7.76048053,134.79,134.78,0.2656504]
[1726123549425,14.43748053,134.79,134.78,0.2656504]
[1726123550722,7.76048053,134.79,134.78,0.2656504]
[1726123557028,14.43748053,134.79,134.78,0.2656504]
[1726123562446,7.76048053,134.79,134.78,0.2656504]
[1726123562773,7.96775211,134.84,134.78,6.9426504]
[1726123562936,6.6746,134.84,134.78,8.42622831]
[1726123563142,6.6746,134.84,134.79,6.6768]
[1726123563770,6.6746,134.84,134.8,6.6765]
[1726123564459,30.88775497,134.85,134.8,6.6765]
[1726123564656,7.75555497,134.85,134.81,6.6759]
[1726123565864,6.3128,134.87,134.82,6.6755]
[1726123565865,6.6731,134.87,134.82,6.6755]
[1726123567241,6.6737,134.86,134.81,23.3651]
[1726123567467,6.6745,134.84,134.79,6.6766]
[1726123568083,6.6741,134.85,134.79,6.6766]
[1726123568662,6.6741,134.85,134.8,6.6764]
[1726123569312,6.6736,134.86,134.81,6.6759]
[1726123573888,5.6736,134.86,134.81,6.6759]
[1726123575115,6.673,134.87,134.82,6.6755]
[1726123575408,22.7968,134.88,134.83,6.6749]
[1726123583442,16.1242,134.88,134.84,6.6744]
[1726123583613,7.75830854,134.89,134.85,6.674]
[1726123583941,7.755554,134.9,134.86,6.6733]
[1726123584240,22.9601,134.91,134.86,6.6734]
[1726123586227,16.289,134.91,134.84,16.6856]
[1726123587439,6.6721,134.89,134.84,23.3601]
[1726123589440,6.6716,134.9,134.85,6.674]
[1726123592435,16.289,134.91,134.84,16.6856]
[1726123592637,16.289,134.91,134.88,6.6725]
[1726123592844,8.02303025,134.92,134.89,6.672]
[1726123593147,0.2656504,134.92,134.88,6.6724]
[1726123594053,6.9362504,134.92,134.88,6.6724]
[1726123594431,6.9362504,134.92,134.87,6.673]
[1726123595936,6.6712,134.91,134.86,23.3568]
[1726123600038,6.6712,134.91,134.87,6.6729]
[1726123600548,6.9362504,134.92,134.87,6.6729]
[1726123600745,0.2656504,134.92,134.88,6.6725]
[1726123601824,6.9362504,134.92,134.88,6.6725]
[1726123602025,6.9362504,134.92,134.87,6.6729]
[1726123603456,15.8448,134.91,134.85,6.6739]
[1726123603748,15.8448,134.91,134.84,6.6745]
[1726123603954,6.6042,134.9,134.84,6.6745]
[1726123604249,6.6721,134.89,134.83,6.675]
[1726123604450,6.6042,134.9,134.85,6.674]
[1726123604636,6.6042,134.9,134.84,6.6745]
[1726123604637,13.2759,134.9,134.84,6.6745]
[1726123605243,30.27100277,134.91,134.86,6.6735]
[1726123605450,30.27100277,134.91,134.84,16.6852]
[1726123605451,30.27100277,134.91,134.85,6.674]
[1726123605837,6.6716,134.9,134.85,6.674]
[1726123606038,30.27100277,134.91,134.85,6.674]
[1726123608237,30.27100277,134.91,134.86,6.6733]
[1726123609842,23.59990277,134.91,134.87,6.673]
[1726123610655,23.59990277,134.91,134.86,6.6735]
[1726123612730,30.27100277,134.91,134.86,6.6735]
[1726123615141,6.6716,134.9,134.85,6.6739]
[1726123616147,6.6721,134.89,134.85,6.6739]
[1726123616549,6.6716,134.9,134.85,6.6739]
[1726123616948,23.59990277,134.91,134.87,6.673]
[1726123617754,15.8448,134.91,134.88,6.6724]
[1726123617951,15.8448,134.91,134.87,6.6729]
[1726123618172,15.8448,134.91,134.88,6.6725]
[1726123619459,15.8448,134.91,134.86,31.508133]
[1726123619759,0.2656504,134.92,134.89,6.6718]
[1726123620401,0.2656504,134.92,134.9,6.6714]
[1726123621264,0.2656504,134.92,134.91,6.6711]
[1726123622089,0.2656504,134.92,134.91,8.15310142]
[1726123622274,0.2656504,134.92,134.91,8.40408142]
[1726123622675,0.2656504,134.92,134.91,6.6711]
[1726123623870,0.2656504,134.92,134.91,6.92208]
[1726123625769,0.2656504,134.92,134.91,6.6711]
[1726123628798,0.2656504,134.92,134.91,6.92208]
[1726123638488,0.2656504,134.92,134.91,6.6711]
[1726123648732,0.2656504,134.92,134.9,23.3491]
[1726123654141,0.2656504,134.92,134.9,16.678]
[1726123655512,0.2656504,134.92,134.9,23.3494]
[1726123656130,0.2656504,134.92,134.91,6.6711]
[1726123662559,0.2656504,134.92,134.9,16.678]
[1726123663127,0.2656504,134.92,134.89,6.6716]
[1726123663626,6.9366504,134.92,134.87,23.3551]
[1726123663933,0.2656504,134.92,134.87,16.6821]
[1726123665324,0.2656504,134.92,134.89,6.672]
[1726123672848,0.2656504,134.92,134.9,6.6715]
[1726123680560,0.2656504,134.92,134.89,6.672]
[1726123680954,0.2656504,134.92,134.87,16.6821]
[1726123681175,6.9364504,134.92,134.88,6.6725]
[1726123682767,6.6711,134.91,134.87,16.6821]
[1726123683072,6.6711,134.91,134.87,23.3551]
[1726123683254,6.9362504,134.92,134.87,23.3551]
[1726123684947,0.2656504,134.92,134.88,6.6725]
[1726123685277,0.2656504,134.92,134.88,8.1071943]
[1726123685872,0.2656504,134.92,134.88,6.6725]
[1726123686172,0.2656504,134.92,134.89,6.672]
[1726123689759,0.2656504,134.92,134.88,6.6724]
[1726123691679,0.2656504,134.92,134.89,6.6718]
[1726123692067,0.2656504,134.92,134.89,31.504433]
[1726123692276,0.2656504,134.92,134.91,6.6711]
[1726123695160,0.2656504,134.92,134.89,16.6795]
[1726123695161,0.2656504,134.92,134.9,6.6715]
[1726123695365,0.2656504,134.92,134.89,23.3515]
[1726123695768,0.2656504,134.92,134.9,6.6715]
[1726123695977,0.2656504,134.92,134.91,6.6711]
[1726123701178,0.2656504,134.92,134.9,6.6715]
[1726123702488,0.2656504,134.92,134.91,6.6711]
[1726123713381,0.2656504,134.92,134.91,21.496033]
[1726123714395,0.2656504,134.92,134.91,21.747013]
[1726123718793,0.2656504,134.96,134.95,23.3419]
[1726123719001,0.2656504,134.96,134.95,38.166833]
[1726123719297,0.2656504,134.96,134.95,39.64839072]
[1726123719477,0.2656504,134.96,134.95,38.166833]
[1726123720167,0.2656504,134.96,134.95,23.3419]
[1726123720788,0.2656504,134.96,134.95,23.59288]
[1726123720971,0.2656504,134.96,134.95,43.59288]
[1726123729983,20.0,135.0,134.99,23.335]
[1726123730179,20.0,135.0,134.99,38.410913]
[1726123740710,20.0,135.0,134.99,23.335]
[1726123741420,20.0,135.0,134.96,16.6712]
[1726123741598,20.0,135.0,134.97,6.668]
[1726123741800,20.0,135.0,134.98,6.6675]
[1726123742490,20.0,135.0,134.99,21.492033]
[1726123742814,20.0,135.0,134.99,41.492033]
[1726123743194,20.0,135.0,134.99,41.617523]
[1726123743603,20.0,135.0,134.99,41.743013]
[1726123747009,0.2656504,135.01,134.99,35.075913]
[1726123747222,0.2656504,135.05,135.04,23.3263]
[1726123747397,0.2656504,135.05,135.04,38.151233]
[1726123747606,0.2656504,135.05,135.04,23.3263]
[1726123747919,0.2656504,135.05,135.04,16.6617]
[1726123752218,0.2656504,135.05,135.01,23.3308]
[1726123752411,6.4485504,135.05,135.01,23.3308]
[1726123753205,6.4485504,135.05,135.02,6.6655]
[1726123754626,6.4485504,135.05,135.01,16.6651]
[1726123755526,15.0478,135.04,134.99,6.6666]
[1726123756420,21.7126,135.04,134.99,6.6666]
[1726123756607,21.7126,135.04,134.98,23.3364]
[1726123756815,16.6257,135.02,134.95,16.6726]
[1726123757017,23.2918,135.02,134.95,16.6726]
[1726123757221,16.6257,135.02,134.98,6.6675]
[1726123757604,16.6257,135.02,134.99,6.6669]
[1726123757815,16.6257,135.02,134.98,6.6676]
[1726123759234,16.6257,135.02,134.99,6.6667]
[1726123759936,16.6257,135.02,134.97,23.337]
[1726123760310,23.2917,135.02,134.97,23.337]
[1726123760711,6.6662,135.01,134.97,16.6694]
[1726123763330,6.6662,135.01,134.96,6.6686]
[1726123766332,24.38009935,135.02,134.94,16.6736]
[1726123766545,24.38009935,135.02,134.93,48.174533]
[1726123766546,16.6257,135.02,134.99,6.6669]
[1726123767037,16.6257,135.02,134.98,6.6675]
[1726123767253,6.6664,135.01,134.96,23.3389]
[1726123767413,6.6667,135.0,134.96,16.6708]
[1726123767619,6.6662,135.01,134.96,23.3394]
[1726123769026,6.6667,135.0,134.96,23.3394]
[1726123769245,6.6667,135.0,134.96,16.6708]
[1726123770749,6.1724,135.03,134.93,6.6696]
[1726123770750,22.4646,134.97,134.93,6.6696]
[1726123771121,29.1327,134.97,134.92,23.3459]
[1726123771432,29.1327,134.97,134.93,6.6701]
[1726123771632,29.1327,134.97,134.92,23.3459]
[1726123774357,22.4646,134.97,134.93,6.6701]
[1726123787461,22.4646,134.97,134.94,6.6694]
[1726123788353,29.1331,134.97,134.92,16.6754]
[1726123788558,29.1331,134.97,134.92,23.3459]
[1726123788964,36.89065793,134.97,134.92,23.3459]
[1726123792842,6.6686,134.96,134.92,23.3459]
[1726123793361,36.89035793,134.97,134.92,23.3459]
[1726123795649,36.89035793,134.97,134.93,6.67]
[1726123800478,36.89035793,134.97,134.94,6.6695]
[1726123800479,30.22215793,134.97,134.94,6.6695]
[1726123800668,22.4646,134.97,134.93,6.67]
[1726123801781,29.1328,134.97,134.92,23.3459]
[1726123807697,29.1328,134.97,134.93,6.67]
[1726123813102,22.4646,134.97,134.94,6.6695]
[1726123813309,22.831,135.01,134.97,6.6676]
[1726123814387,29.4972,135.01,134.96,23.3392]
[1726123816394,6.6672,134.99,134.94,6.6695]
[1726123817398,14.42367969,134.99,134.94,6.6695]
[1726123824290,30.58855352,135.01,134.97,6.668]
[1726123824608,24.30345352,135.01,134.97,16.6695]
[1726123824815,16.5459,135.01,134.97,31.494433]
[1726123825310,16.5459,135.01,135.0,6.6666]
[1726123826390,16.5459,135.01,134.97,23.3371]
[1726123829224,16.5459,135.01,134.98,6.6675]
[1726123829396,16.5459,135.01,134.97,31.494433]
[1726123830315,22.0892,135.04,135.0,6.6666]
[1726123834501,22.0892,135.04,135.01,6.6659]
[1726123838607,0.2656504,135.05,135.01,31.489433]
[1726123838799,0.2656504,135.05,135.03,6.6651]
[1726123839001,0.2656504,135.05,135.02,6.6656]
[1726123840510,0.2656504,135.05,135.01,23.3306]
[1726123840716,0.2656504,135.05,135.01,16.6645]
[1726123840914,6.9300504,135.05,135.01,16.6645]
[1726123841412,29.7545,135.04,134.99,6.6666]
[1726123847634,23.0898,135.04,134.99,6.6666]
[1726123849018,29.7545,135.04,134.99,6.6666]
[1726123849333,6.6654,135.03,134.98,16.669]
[1726123850733,6.6658,135.02,134.96,6.6685]
[1726123861343,14.42266375,135.02,134.96,6.6685]
[1726123862839,14.42266375,135.02,134.97,6.6679]
[1726123863445,7.75686375,135.02,134.97,6.6679]
[1726123864925,7.75686375,135.02,134.98,6.6676]
[1726123865246,6.6652,135.03,134.98,6.6676]
[1726123868756,6.6652,135.03,134.97,23.3377]
[1726123869158,6.6657,135.02,134.97,23.3377]
[1726123869349,6.6652,135.03,134.97,23.3377]
[1726123872742,29.7545,135.04,134.98,6.6675]
[1726123873051,29.7545,135.04,134.99,6.667]
[1726123874555,23.0898,135.04,134.99,6.667]
[1726123882649,6.6661,135.01,134.97,16.6697]
[1726123882862,6.6661,135.01,134.93,33.3501]
[1726123882863,21.9911,135.0,134.94,16.6735]
[1726123883173,29.7483957,135.0,134.94,16.6735]
[1726123883949,6.668,134.98,134.92,6.6705]
[1726123886441,16.0886,134.95,134.91,23.3487]
[1726123888165,29.3613,134.95,134.91,16.6777]
[1726123888467,22.6921,134.95,134.91,16.6777]
[1726123890255,29.3613,134.95,134.91,16.6777]
[1726123891071,29.3613,134.95,134.9,6.9372504]
[1726123891273,29.3613,134.95,134.9,0.2656504]
[1726123891653,6.6697,134.94,134.9,0.2656504]
[1726123892378,6.6703,134.93,134.9,0.2656504]
[1726123892973,6.6696,134.94,134.9,0.2656504]
[1726123893181,22.6921,134.95,134.9,0.2656504]
[1726123894261,22.6921,134.95,134.91,6.671]
[1726123896962,16.0886,134.95,134.9,16.9438504]
[1726123897279,16.0886,134.95,134.93,6.6699]
[1726123899059,6.6676,134.98,134.93,6.6699]
[1726123900175,28.5097,134.99,134.94,6.6695]
[1726123900559,21.8425,134.99,134.95,6.6691]
[1726123900974,21.8425,134.99,134.96,6.6684]
[1726123901186,6.176,135.02,134.97,6.668]
[1726123901356,6.176,135.02,134.98,6.6676]
[1726123901979,15.3277,135.03,134.99,6.6667]
[1726123902180,15.3277,135.03,135.0,6.6665]
[1726123902478,15.3277,135.03,134.99,6.6671]
[1726123903459,21.9929,135.03,134.98,23.3356]
[1726123905983,6.6656,135.02,134.98,16.6681]
[1726123906191,6.6663,135.01,134.96,6.6685]
[1726123906485,15.3277,135.03,134.95,23.3418]
[1726123906486,6.6667,135.0,134.95,23.3418]
[1726123906874,15.3277,135.03,134.95,14.824933]
[1726123907076,15.3277,135.03,134.99,6.6671]
[1726123907271,15.3277,135.03,135.0,6.6665]
[1726123913094,6.6067504,135.05,134.97,14.824933]
[1726123913268,0.2656504,135.05,135.03,6.6651]
[1726123914485,0.2656504,135.05,135.02,6.6656]
[1726123917770,0.2656504,135.05,135.03,6.6651]
[1726123920271,0.2656504,135.05,135.01,23.3299]
[1726123922284,0.2656504,135.05,135.02,6.6656]
[1726123925198,0.2656504,135.05,135.03,6.6651]
[1726123928297,0.2656504,135.05,135.04,6.6646]
[1726123929506,0.2656504,135.05,135.03,23.327]
[1726123931591,0.2656504,135.05,135.01,6.6658]
[1726123931804,0.2656504,135.05,135.02,6.6655]
[1726123932299,0.2656504,135.05,135.03,6.6651]
[1726123932908,0.2656504,135.05,135.04,6.6646]
[1726123933077,0.2656504,135.05,135.04,8.14529917]
[1726123935409,0.2656504,135.05,135.04,6.6646]
[1726123936083,0.2656504,135.05,135.03,23.3278]
[1726123936604,0.2656504,135.05,135.0,16.6661]
[1726123937102,0.2656504,135.05,135.03,16.6629]
[1726123937488,0.2656504,135.05,135.04,6.6646]
[1726123937896,0.2656504,135.05,135.03,23.328]
[1726123941592,0.2656504,135.05,135.04,6.6646]
[1726123947589,0.2656504,135.05,135.03,23.3279]
[1726123948216,0.2656504,135.05,135.04,6.6646]
[1726123954001,0.2656504,135.05,135.04,6.91558]
[1726123954223,0.2656504,135.05,135.04,6.79009]
[1726123954910,0.2656504,135.05,135.04,6.6646]
[1726123956712,0.2656504,135.05,135.03,23.3279]
[1726123957526,0.2656504,135.05,135.03,16.6629]
[1726123957737,0.2656504,135.05,135.0,22.31524159]
[1726123958023,0.2656504,135.05,135.0,16.6666]
[1726123958425,0.2656504,135.05,135.01,6.6657]
[1726123958930,0.2656504,135.05,135.01,6.666]
[1726123959931,6.9298504,135.05,135.0,23.3331]
[1726123962528,6.6648,135.04,135.0,16.6666]
[1726123963627,15.1359,135.02,134.97,23.3378]
[1726123963816,15.1359,135.02,134.98,6.6676]
[1726123967731,15.1359,135.02,134.99,6.6671]
[1726123969769,15.1359,135.02,134.98,6.6675]
[1726123971430,15.1359,135.02,134.99,6.667]
[1726123971816,15.1359,135.02,134.98,6.6675]
[1726123974739,15.1359,135.02,134.99,6.667]
[1726123976224,15.1359,135.02,135.0,6.6666]
[1726123977611,15.1359,135.02,134.99,6.667]